bitfinex-derivatives/quotes_ETHF0:USTF0_20250327
["timestamp","ask_amount","ask_price","bid_price","bid_amount"]
[1743051411178,2.39202,2031.6,2031.5,5.3712]
[1743051411481,3.38992902,2031.6,2031.5,5.3712]
[1743051411873,2.39202,2031.6,2031.5,5.3712]
[1743051415877,3.38992902,2031.6,2031.5,5.3712]
[1743051417484,3.38992902,2031.6,2031.5,6.0408]
[1743051424877,4.45473577,2031.6,2031.5,6.0408]
[1743051425585,3.38992902,2031.6,2031.5,6.0408]
[1743051426183,4.45474788,2031.6,2031.5,6.0408]
[1743051426686,3.38992902,2031.6,2031.5,6.0408]
[1743051427882,4.45482715,2031.6,2031.5,6.0408]
[1743051435098,7.66262715,2031.6,2031.5,6.0408]
[1743051439592,4.45482715,2031.6,2031.5,6.0408]
[1743051440296,0.98447,2031.3,2031.2,0.00738716]
[1743051440497,0.98461,2031.0,2030.9,1.412]
[1743051440693,3.2078,2031.0,2030.6,0.711]
[1743051440888,3.2078,2031.0,2030.6,42.1711]
[1743051440889,0.98476,2030.7,2030.6,42.1711]
[1743051441093,0.98476,2030.7,2030.6,44.5111]
[1743051441303,0.98476,2030.7,2030.6,3.5511]
[1743051441597,0.98476,2030.7,2030.6,1.3711]
[1743051441803,0.98476,2030.7,2030.6,2.3411]
[1743051442203,1.4271,2030.7,2030.6,2.3411]
[1743051442502,0.98473,2030.8,2030.6,2.3411]
[1743051442805,2.41183,2030.8,2030.6,3.32589]
[1743051443000,2.41184,2030.8,2030.6,3.32591]
[1743051443907,2.41184,2030.8,2030.7,1.3386]
[1743051444404,2.41184,2030.8,2030.7,3.5586]
[1743051445006,0.98474,2030.8,2030.7,3.5586]
[1743051446100,0.98471,2030.8,2030.7,3.5586]
[1743051447306,2.42737716,2030.9,2030.7,4.54336]
[1743051447507,2.42737716,2030.9,2030.8,1.3886]
[1743051447709,0.99207716,2030.9,2030.8,3.5086]
[1743051449613,0.99207716,2030.9,2030.8,1.3886]
[1743051449818,0.99207716,2030.9,2030.8,3.5586]
[1743051450618,0.99207716,2030.9,2030.8,1.3886]
[1743051451118,0.99207716,2030.9,2030.8,3.4786]
[1743051451317,0.99207716,2030.9,2030.8,1.3886]
[1743051451512,0.99207716,2030.9,2030.8,3.3586]
[1743051451718,0.99207716,2030.9,2030.8,1.3886]
[1743051451919,0.99207716,2030.9,2030.8,3.4686]
[1743051454316,0.99207716,2030.9,2030.8,1.3886]
[1743051454515,0.99207716,2030.9,2030.8,3.5086]
[1743051455417,0.99207716,2030.9,2030.8,1.3886]
[1743051455616,0.99207716,2030.9,2030.8,3.5586]
[1743051456109,0.99207716,2030.9,2030.8,1.3886]
[1743051456512,0.99207716,2030.9,2030.8,3.5686]
[1743051457721,0.99207716,2030.9,2030.8,1.3886]
[1743051458123,1.64447716,2030.9,2030.8,1.3886]
[1743051458527,1.64447716,2030.9,2030.8,3.6886]
[1743051458724,1.64447716,2030.9,2030.8,1.3886]
[1743051459025,1.64447716,2030.9,2030.8,3.4086]
[1743051459622,4.85227716,2030.9,2030.8,3.4086]
[1743051461031,6.27117716,2030.9,2030.8,3.4086]
[1743051461728,3.06337716,2030.9,2030.8,3.4086]
[1743051462723,3.06337716,2030.9,2030.8,1.3886]
[1743051463328,3.06337716,2030.9,2030.8,1.7886]
[1743051463531,6.27117716,2030.9,2030.8,1.3886]
[1743051463934,6.27117716,2030.9,2030.8,1.8386]
[1743051464125,6.27117716,2030.9,2030.8,1.3886]
[1743051464325,6.27117716,2030.9,2030.8,3.6286]
[1743051465228,6.27117716,2030.9,2030.8,1.3886]
[1743051465424,6.27117716,2030.9,2030.8,3.3586]
[1743051466329,6.27117716,2030.9,2030.8,1.3886]
[1743051466530,6.27117716,2030.9,2030.8,3.6886]
[1743051466725,6.27117716,2030.9,2030.8,3.3086]
[1743051466931,4.63408716,2030.9,2030.8,4.29331]
[1743051467125,3.21518716,2030.9,2030.8,4.29331]
[1743051467632,10.0013277,2031.2,2031.0,0.9846]
[1743051467821,10.0013277,2031.2,2031.1,2.025]
[1743051468022,4.19233,2031.2,2031.1,2.025]
[1743051468231,4.19233,2031.2,2031.1,4.005]
[1743051468533,4.19233,2031.2,2031.1,2.025]
[1743051468735,4.19232,2031.2,2031.1,3.985]
[1743051468935,3.2078,2031.2,2031.1,4.96956]
[1743051469134,4.19232,2031.2,2031.1,2.025]
[1743051469429,5.59152,2031.2,2031.1,2.025]
[1743051469931,5.60356172,2031.2,2030.8,0.9847]
[1743051470133,0.98464,2031.0,2030.9,2.0544]
[1743051470534,0.98464,2031.0,2030.9,4.3944]
[1743051470937,0.98464,2031.0,2030.9,2.0544]
[1743051471236,2.38384,2031.0,2030.9,4.0644]
[1743051471436,2.38384,2031.0,2030.9,5.04906]
[1743051471635,2.38384,2031.0,2030.9,4.2544]
[1743051471834,2.38384,2031.0,2030.9,2.0544]
[1743051472031,2.38384,2031.0,2030.9,4.1844]
[1743051472837,2.38384,2031.0,2030.9,2.0544]
[1743051473340,2.38384,2031.0,2030.9,2.4844]
[1743051473936,2.38384,2031.0,2030.9,2.0544]
[1743051474332,2.38384,2031.0,2030.9,4.3144]
[1743051474638,2.38384,2031.0,2030.9,2.0544]
[1743051474838,2.38384,2031.0,2030.9,4.1544]
[1743051475146,2.38384,2031.0,2030.9,5.13906]
[1743051475334,4.27183726,2031.2,2031.0,0.98461]
[1743051475535,0.98456,2031.1,2031.0,2.87661]
[1743051476135,0.98456,2031.1,2031.0,1.892]
[1743051476336,2.38986,2031.1,2031.0,1.892]
[1743051476836,2.38986,2031.1,2031.0,2.87661]
[1743051477041,2.38986,2031.1,2031.0,1.892]
[1743051477354,2.38986,2031.1,2031.0,2.87661]
[1743051477538,2.38986,2031.1,2031.0,1.892]
[1743051480847,2.38986,2031.1,2031.0,1.422]
[1743051481050,2.38986,2031.1,2031.0,3.672]
[1743051482339,2.38986,2031.1,2031.0,1.422]
[1743051482552,2.38986,2031.1,2031.0,3.542]
[1743051482847,2.38986,2031.1,2031.0,1.422]
[1743051483053,2.38986,2031.1,2031.0,3.772]
[1743051483451,2.38986,2031.1,2031.0,1.422]
[1743051483852,2.38986,2031.1,2031.0,3.622]
[1743051484153,2.38986,2031.1,2031.0,1.422]
[1743051484353,2.38986,2031.1,2031.0,1.822]
[1743051485860,2.38986,2031.1,2031.0,1.422]
[1743051486258,2.38986,2031.1,2031.0,2.84661]
[1743051486560,2.38986,2031.1,2031.0,1.862]
[1743051487455,2.38986,2031.1,2031.0,2.84661]
[1743051487857,2.38986,2031.1,2031.0,1.422]
[1743051488158,2.38986,2031.1,2031.0,3.782]
[1743051488856,2.38986,2031.1,2031.0,3.772]
[1743051489058,2.38986,2031.1,2031.0,1.422]
[1743051489361,2.38986,2031.1,2031.0,3.652]
[1743051489555,2.38986,2031.1,2031.0,3.622]
[1743051490252,2.38986,2031.1,2031.0,1.422]
[1743051490959,2.38986,2031.1,2031.0,3.642]
[1743051491456,2.38986,2031.1,2031.0,1.422]
[1743051491659,2.38986,2031.1,2029.7,0.08570574]
[1743051491660,0.98471,2030.8,2030.4,44.01518716]
[1743051491861,0.98471,2030.8,2030.6,1.68227]
[1743051492057,0.98469,2030.9,2030.7,0.98476]
[1743051492361,3.2078,2030.9,2030.7,1.38476]
[1743051492659,0.98471,2030.8,2030.7,0.4]
[1743051492854,4.19249,2030.9,2030.7,1.38473]
[1743051493049,4.19249,2030.9,2030.8,1.2983]
[1743051493447,4.19249,2030.9,2030.8,3.4983]
[1743051493654,4.88589,2030.9,2030.8,3.4983]
[1743051494357,6.19479,2030.9,2030.8,3.4983]
[1743051494950,6.19479,2030.9,2030.8,1.2983]
[1743051495151,5.50139,2030.9,2030.8,3.4283]
[1743051495348,5.50139,2030.9,2030.8,4.0891]
[1743051495562,5.50136,2030.9,2030.8,4.0891]
[1743051497163,2.29356,2030.9,2030.8,4.0891]
[1743051497462,5.50136,2030.9,2030.8,4.0891]
[1743051498262,5.50136,2030.9,2030.8,4.2291]
[1743051499264,5.50136,2030.9,2030.8,1.9591]
[1743051499449,5.50136,2030.9,2030.8,4.1891]
[1743051499655,5.50136,2030.9,2030.8,1.9591]
[1743051499862,5.50136,2030.9,2030.8,4.0591]
[1743051500063,5.50136,2030.9,2030.8,4.2491]
[1743051503355,2.29356,2030.9,2030.8,5.23381]
[1743051503554,5.50136,2030.9,2030.8,5.23381]
[1743051503756,5.50136,2030.9,2030.8,4.2491]
[1743051503956,5.50136,2030.9,2030.8,5.23381]
[1743051505966,4.5167,2030.9,2030.8,5.23381]
[1743051506264,5.50136,2030.9,2030.8,5.23381]
[1743051507067,4.5167,2030.9,2030.8,5.23381]
[1743051508667,5.50136,2030.9,2030.8,5.23381]
[1743051508870,5.50136,2030.9,2030.8,4.2491]
[1743051509167,5.50136,2030.9,2030.8,1.9591]
[1743051509768,5.50136,2030.9,2030.8,4.2991]
[1743051509963,0.98476,2030.7,2030.6,0.6975]
[1743051510167,0.98476,2030.7,2030.6,2.23]
[1743051510666,3.65206,2030.7,2030.6,2.23]
[1743051510863,4.65032888,2030.7,2030.6,2.23]
[1743051513666,1.3151,2030.7,2030.6,3.21481]
[1743051513969,1.3151,2030.7,2030.6,4.59881]
[1743051514568,7.3145,2030.9,2030.7,0.98475]
[1743051514768,1.2953,2030.8,2030.7,5.98875]
[1743051515373,2.28001,2030.8,2030.7,5.004]
[1743051516469,1.2953,2030.8,2030.7,5.98876]
[1743051516666,7.31449,2030.9,2030.8,0.98471]
[1743051516667,3.2078,2030.9,2030.8,0.98471]
[1743051516873,6.7936477,2031.0,2030.8,4.72871]
[1743051517258,8.0889477,2031.0,2030.9,2.0915]
[1743051517564,2.27991,2031.0,2030.9,2.4815]
[1743051520459,1.2953,2031.0,2030.9,3.46616]
[1743051520863,2.27991,2031.0,2030.9,2.4815]
[1743051523973,2.27991,2031.0,2030.9,3.46616]
[1743051524778,2.27991,2031.0,2030.9,2.4815]
[1743051525373,2.27991,2031.0,2030.9,2.0915]
[1743051525877,2.27991,2031.0,2030.9,4.0815]
[1743051527577,2.27991,2031.0,2030.9,2.0915]
[1743051527876,2.27991,2031.0,2030.9,4.1615]
[1743051529371,2.27991,2031.0,2030.9,3.07616]
[1743051529773,2.27991,2031.0,2030.9,5.25616]
[1743051531083,2.27991,2031.0,2030.9,4.2715]
[1743051531379,2.27991,2031.0,2030.9,5.25616]
[1743051532290,1.2953,2031.0,2030.9,5.25616]
[1743051532486,3.2078,2031.1,2031.0,0.98461]
[1743051532686,3.2078,2031.1,2031.0,8.22241]
[1743051533080,2.28574,2031.2,2031.0,7.2378]
[1743051533281,2.28574,2031.2,2031.1,1.339]
[1743051533482,2.28574,2031.2,2031.1,4.959]
[1743051533788,2.28574,2031.2,2031.1,1.339]
[1743051534086,2.28574,2031.2,2031.1,3.359]
[1743051534581,2.28574,2031.2,2031.1,4.34356]
[1743051534887,1.3012,2031.2,2031.1,4.34356]
[1743051536084,4.19963716,2031.4,2031.2,0.9845]
[1743051536386,4.18543072,2031.4,2031.3,2.067]
[1743051536586,4.18543072,2031.4,2031.3,2.477]
[1743051536890,4.18543072,2031.4,2031.3,2.067]
[1743051537186,4.18543072,2031.4,2031.3,4.197]
[1743051537385,5.57683072,2031.4,2031.3,4.197]
[1743051538392,5.57683072,2031.4,2031.3,4.187]
[1743051539687,5.57683072,2031.4,2031.3,2.067]
[1743051539888,5.57683072,2031.4,2031.3,4.027]
[1743051540501,5.57683072,2031.4,2031.3,2.067]
[1743051540699,5.57683072,2031.4,2031.3,4.357]
[1743051541299,5.57683072,2031.4,2031.3,2.067]
[1743051541902,5.57683072,2031.4,2031.3,4.407]
[1743051542496,5.57683072,2031.4,2031.3,4.347]
[1743051544206,5.57683072,2031.4,2031.3,4.457]
[1743051544702,5.57683072,2031.4,2031.3,4.027]
[1743051544997,5.57683072,2031.4,2031.3,4.297]
[1743051546204,4.59238072,2031.4,2031.3,2.067]
[1743051546402,4.59238072,2031.4,2031.3,4.237]
[1743051546602,4.59238072,2031.4,2031.3,5.22147]
[1743051547201,3.20098072,2031.4,2031.3,5.22147]
[1743051547407,5.8089977,2032.0,2031.5,0.98437]
[1743051547607,1.3294,2031.9,2031.8,0.98423]
[1743051547903,0.98413,2032.0,2031.8,44.48423]
[1743051548105,1.3963,2032.0,2031.9,3.07328]
[1743051549101,1.3963,2032.0,2031.9,5.36328]
[1743051551309,1.3963,2032.0,2031.9,3.07328]
[1743051551510,1.3963,2032.0,2031.9,5.20328]
[1743051552499,1.3963,2032.0,2031.9,3.07328]
[1743051553105,1.3963,2032.0,2031.9,3.46328]
[1743051554309,2.38043,2032.0,2031.9,5.31328]
[1743051554497,2.38043,2032.0,2031.9,4.1491]
[1743051554903,2.38043,2032.0,2031.9,2.0891]
[1743051555200,2.38043,2032.0,2031.9,4.3291]
[1743051555604,2.38043,2032.0,2031.9,5.31328]
[1743051555902,1.3963,2032.0,2031.9,5.31328]
[1743051556312,2.38043,2032.0,2031.9,3.07328]
[1743051556604,1.3963,2032.0,2031.9,5.22328]
[1743051557005,2.38043,2032.0,2031.9,3.07328]
[1743051557206,2.38043,2032.0,2031.9,5.03328]
[1743051557908,1.3963,2032.0,2031.9,3.07328]
[1743051558411,1.3963,2032.0,2031.9,5.17328]
[1743051558602,1.3963,2032.0,2031.9,3.07328]
[1743051558797,1.3963,2032.0,2031.9,5.05328]
[1743051559009,2.38043,2032.0,2031.9,3.07328]
[1743051559209,2.38043,2032.0,2031.9,3.52328]
[1743051559901,1.3963,2032.0,2031.7,44.01518716]
[1743051560101,0.98423,2031.8,2031.7,5.45518716]
[1743051560314,0.98423,2031.8,2031.7,5.28518716]
[1743051560507,1.64573,2031.8,2031.7,3.21518716]
[1743051560714,1.64573,2031.8,2031.7,5.18518716]
[1743051561315,3.05583,2031.8,2031.7,6.77208716]
[1743051561710,3.05583,2031.8,2031.7,4.55208716]
[1743051562018,3.05583,2031.8,2031.7,6.68208716]
[1743051562810,3.05583,2031.8,2031.7,6.52208716]
[1743051563315,3.05583,2031.8,2031.7,6.57208716]
[1743051564318,3.05583,2031.8,2031.7,3.36428716]
[1743051565817,3.05583,2031.8,2031.7,1.34428716]
[1743051566018,3.05583,2031.8,2031.7,3.72428716]
[1743051566417,3.05583,2031.8,2031.7,3.58428716]
[1743051567322,2.0716,2031.8,2031.7,4.56855716]
[1743051567525,1.4101,2031.8,2031.7,4.56855716]
[1743051568025,6.7930777,2032.1,2032.0,0.98413]
[1743051568319,4.10405,2032.2,2032.0,2.32]
[1743051568525,0.98405,2032.2,2032.1,40.8]
[1743051569025,0.98417,2032.0,2031.9,0.98418]
[1743051569224,0.98411,2032.1,2031.9,2.39868]
[1743051569426,3.2078,2032.3,2032.0,42.2145]
[1743051569621,0.98408,2032.1,2032.0,40.8]
[1743051569821,0.98408,2032.1,2032.0,41.4611]
[1743051570028,0.98406,2032.2,2032.0,44.55523]
[1743051570222,0.98406,2032.2,2032.0,42.44523]
[1743051570527,3.2078,2032.3,2032.0,43.6611]
[1743051570528,0.98408,2032.1,2032.0,43.6611]
[1743051570718,0.98408,2032.1,2032.0,40.8]
[1743051570923,0.98414,2032.0,2031.8,1.64528]
[1743051571422,0.98413,2032.0,2031.9,40.8]
[1743051571621,0.98413,2032.0,2031.9,44.63]
[1743051572320,0.98413,2032.0,2031.9,40.8]
[1743051572527,2.46009,2032.2,2031.7,0.99164716]
[1743051572723,0.6759,2031.9,2031.7,0.99164716]
[1743051572919,0.6759,2031.9,2031.7,41.79164716]
[1743051573116,0.98423,2031.8,2031.7,40.80738716]
[1743051573313,0.98423,2031.8,2031.7,41.79165716]
[1743051573513,0.98423,2031.8,2031.7,43.03738716]
[1743051573725,0.6759,2031.9,2031.7,43.78163716]
[1743051573928,0.6759,2031.9,2031.7,42.25163716]
[1743051574319,0.6759,2031.9,2031.8,0.98423]
[1743051574526,0.6759,2031.9,2031.7,40.80738716]
[1743051574722,1.6601,2031.9,2031.8,0.98423]
[1743051575028,1.66008,2031.9,2031.8,2.41]
[1743051575525,0.6759,2031.9,2031.8,0.98423]
[1743051575718,0.98416,2032.0,2031.9,0.98418]
[1743051575920,0.98413,2032.0,2031.9,3.20418]
[1743051576120,0.98413,2032.0,2031.9,0.98418]
[1743051576316,0.98413,2032.0,2031.9,2.27]
[1743051576517,0.98413,2032.0,2031.8,0.98419]
[1743051576721,0.98413,2032.0,2031.8,3.49]
[1743051576922,0.98423,2031.8,2031.7,40.80738716]
[1743051577727,0.98423,2031.8,2031.7,42.90738716]
[1743051578921,0.98423,2031.8,2031.7,43.89165716]
[1743051579630,0.98421,2031.9,2031.7,43.89165716]
[1743051579932,4.20327581,2032.0,2031.7,42.90738716]
[1743051580134,0.98422,2031.9,2031.7,43.89163716]
[1743051580435,0.98422,2031.9,2031.7,42.90738716]
[1743051580732,0.98422,2031.9,2031.7,43.89162716]
[1743051581135,0.98422,2031.9,2031.8,1.3432]
[1743051581320,0.98422,2031.9,2031.8,3.6432]
[1743051581719,0.98422,2031.9,2031.8,1.3432]
[1743051581927,0.98422,2031.9,2031.8,1.7832]
[1743051582123,4.19197,2032.0,2031.8,2.76741]
[1743051582332,0.98418,2031.9,2031.8,2.76741]
[1743051582536,2.31828,2031.9,2031.8,1.42421]
[1743051582733,2.31828,2031.9,2031.8,1.1332]
[1743051583029,1.3341,2031.9,2031.8,2.11743]
[1743051583227,1.3341,2031.9,2031.8,3.91743]
[1743051583733,2.31828,2031.9,2031.8,2.9332]
[1743051584134,1.3341,2031.9,2031.8,3.91743]
[1743051584330,2.31828,2031.9,2031.8,3.91743]
[1743051584537,1.3341,2031.9,2031.8,3.91743]
[1743051584737,2.31828,2031.9,2031.8,1.67743]
[1743051584933,1.3341,2031.9,2031.8,1.67743]
[1743051585136,1.3341,2031.9,2031.8,3.70743]
[1743051585439,1.3341,2031.9,2031.8,3.96743]
[1743051585639,1.3341,2031.9,2031.8,1.67743]
[1743051585826,1.3341,2031.9,2031.8,3.86743]
[1743051586736,2.31828,2031.9,2031.8,3.86743]
[1743051587339,2.31828,2031.9,2031.8,2.8832]
[1743051587726,2.31828,2031.9,2031.8,0.6932]
[1743051587922,2.31828,2031.9,2031.8,2.7832]
[1743051588732,0.98423,2031.8,2031.7,40.80738716]
[1743051588939,2.41223,2031.8,2031.7,42.86738716]
[1743051589731,2.41223,2031.8,2031.7,40.80738716]
[1743051591241,2.41223,2031.8,2031.7,43.16738716]
[1743051592237,2.41223,2031.8,2031.7,43.03738716]
[1743051592447,2.41223,2031.8,2031.7,44.02165716]
[1743051592640,1.428,2031.8,2031.7,44.70975716]
[1743051593134,2.41223,2031.8,2031.7,44.70975716]
[1743051594240,1.428,2031.8,2031.7,44.70975716]
[1743051594645,1.428,2031.8,2031.7,42.47975716]
[1743051594831,1.428,2031.8,2031.7,42.94975716]
[1743051595030,2.41223,2031.8,2031.7,42.94975716]
[1743051595239,2.41223,2031.8,2031.7,42.47975716]
[1743051595445,2.41223,2031.8,2031.7,44.63975716]
[1743051595746,2.41223,2031.8,2031.7,42.47975716]
[1743051596435,1.428,2031.8,2031.7,44.56975716]
[1743051596636,2.41223,2031.8,2031.7,44.56975716]
[1743051596831,1.428,2031.8,2031.7,44.56975716]
[1743051597033,2.41223,2031.8,2031.7,44.56975716]
[1743051597440,2.41223,2031.8,2031.7,44.54975716]
[1743051598045,2.41223,2031.8,2031.7,42.47975716]
[1743051598344,2.41223,2031.8,2031.7,40.80738716]
[1743051598536,2.41223,2031.8,2031.7,43.95165716]
[1743051598738,2.41223,2031.8,2031.7,40.80738716]
[1743051599044,2.41223,2031.8,2031.7,41.79165716]
[1743051599239,2.41223,2031.8,2031.7,43.85165716]
[1743051599434,2.41223,2031.8,2031.7,44.55165716]
[1743051600237,1.428,2031.8,2031.7,44.55165716]
[1743051600434,1.428,2031.8,2031.7,42.49165716]
[1743051600635,2.41223,2031.8,2031.7,42.90165716]
[1743051600835,2.41223,2031.8,2031.7,0.70738716]
[1743051601037,3.07723,2031.8,2031.7,0.00738716]
[1743051601234,2.7648,2031.8,2031.4,0.98442]
[1743051601533,3.2078,2031.6,2031.5,1.69997]
[1743051601736,3.2078,2031.6,2031.5,5.8245]
[1743051601936,4.19212,2031.6,2031.5,5.8245]
[1743051602749,3.2078,2031.6,2031.5,6.80887]
[1743051603551,4.19212,2031.6,2031.5,6.80887]
[1743051603743,4.19212,2031.6,2031.5,5.8245]
[1743051604450,4.19212,2031.6,2031.5,6.80887]
[1743051604645,4.19212,2031.6,2031.5,5.8245]
[1743051605949,4.19212,2031.6,2031.5,4.41]
[1743051606146,0.98442,2031.4,2031.3,0.00738716]
[1743051606536,4.10442,2031.4,2031.3,0.00738716]
[1743051606750,4.10442,2031.4,2030.8,1.317]
[1743051606751,0.98466,2030.9,2030.8,1.317]
[1743051606946,0.98466,2030.9,2030.8,3.91279356]
[1743051607250,0.98466,2030.9,2030.8,44.71279356]
[1743051607646,0.98466,2030.9,2030.8,46.04209356]
[1743051608653,0.98466,2030.9,2030.8,5.24209356]
[1743051611252,0.98476,2030.7,2030.6,0.00738716]
[1743051611453,0.98476,2030.7,2030.6,3.04348716]
[1743051611640,0.98474,2030.8,2030.6,3.04348716]
[1743051611846,0.98474,2030.8,2030.6,0.72348716]
[1743051612047,0.98476,2030.7,2030.6,1.14348716]
[1743051612248,0.98476,2030.7,2030.6,0.72348716]
[1743051612452,0.98476,2030.7,2030.6,2.78348716]
[1743051612655,0.98476,2030.7,2030.6,2.05198716]
[1743051612858,3.21518716,2030.9,2030.6,4.24198716]
[1743051613051,3.21518716,2030.9,2030.7,1.3285]
[1743051613052,0.98474,2030.8,2030.7,1.3285]
[1743051613452,0.98474,2030.8,2030.7,3.5785]
[1743051613957,0.98474,2030.8,2030.7,1.3285]
[1743051614351,0.98474,2030.8,2030.7,3.2985]
[1743051615251,0.98474,2030.8,2030.7,1.3285]
[1743051615454,0.98474,2030.8,2030.7,3.3585]
[1743051615648,0.98474,2030.8,2030.7,1.3285]
[1743051615957,1.67684,2030.8,2030.7,1.3285]
[1743051616253,0.98474,2030.8,2030.7,1.7285]
[1743051616556,3.21518716,2030.9,2030.7,1.7285]
[1743051616855,4.19984716,2030.9,2030.8,1.3139]
[1743051617158,4.19984716,2030.9,2030.8,1.7039]
[1743051617849,3.21518716,2030.9,2030.8,2.68861]
[1743051620158,4.19984716,2030.9,2030.8,1.3139]
[1743051620359,4.19984716,2030.9,2030.8,3.3039]
[1743051622559,4.19984716,2030.9,2030.8,4.28861]
[1743051622859,4.19984716,2030.9,2030.8,3.3039]
[1743051623063,4.19984716,2030.9,2030.8,4.28861]
[1743051623362,3.21518716,2030.9,2030.8,4.28861]
[1743051623773,0.00738716,2030.9,2030.8,4.28861]
[1743051624060,0.99204716,2030.9,2030.8,2.29861]
[1743051624255,0.00738716,2030.9,2030.8,2.29861]
[1743051624455,0.99204716,2030.9,2030.8,4.35861]
[1743051624661,1.42238716,2030.9,2030.8,4.35861]
[1743051625761,2.40704716,2030.9,2030.8,4.35861]
[1743051626062,2.40704716,2030.9,2030.8,3.3739]
[1743051626463,2.40704716,2030.9,2030.8,4.35861]
[1743051626663,2.40704716,2030.9,2030.8,3.3739]
[1743051626966,2.40704716,2030.9,2030.8,1.3139]
[1743051627166,2.40704716,2030.9,2030.8,3.2439]
[1743051627460,2.40704716,2030.9,2030.8,1.3139]
[1743051627660,2.40704716,2030.9,2030.8,3.3839]
[1743051627964,2.40704716,2030.9,2030.8,1.3139]
[1743051628165,2.40704716,2030.9,2030.8,3.2939]
[1743051628661,2.40704716,2030.9,2030.8,3.5239]
[1743051628862,2.40704716,2030.9,2030.8,1.3139]
[1743051629273,0.98476,2030.7,2030.6,3.93128716]
[1743051629465,0.98476,2030.7,2030.6,5.73878716]
[1743051629861,0.98476,2030.7,2030.6,6.72359716]
[1743051630068,0.98476,2030.7,2030.6,5.73878716]
[1743051630871,2.34133,2030.8,2030.6,6.72357716]
[1743051631062,2.34133,2030.8,2030.7,1.367]
[1743051631373,2.34133,2030.8,2030.7,3.297]
[1743051631562,2.34133,2030.8,2030.7,1.367]
[1743051632066,2.34133,2030.8,2030.7,1.757]
[1743051632269,2.34133,2030.8,2030.7,1.367]
[1743051632574,0.98476,2030.7,2030.6,0.00738716]
[1743051632767,2.29926,2030.7,2030.6,3.64438716]
[1743051633075,2.29926,2030.7,2030.6,1.37438716]
[1743051633574,2.29926,2030.7,2030.6,3.36438716]
[1743051633770,2.29926,2030.7,2030.6,1.37438716]
[1743051634774,2.29926,2030.7,2030.6,3.60438716]
[1743051635174,2.29926,2030.7,2030.6,1.37438716]
[1743051635372,2.29926,2030.7,2030.6,3.32438716]
[1743051636273,2.29926,2030.7,2030.6,1.37438716]
[1743051636675,2.29926,2030.7,2030.6,3.70438716]
[1743051637677,2.29926,2030.7,2030.6,1.37438716]
[1743051638278,2.29926,2030.7,2030.6,3.65438716]
[1743051638779,2.29926,2030.7,2030.6,3.66438716]
[1743051638981,2.29926,2030.7,2030.6,1.37438716]
[1743051639279,2.29926,2030.7,2030.6,3.54438716]
[1743051641480,2.29926,2030.7,2030.6,3.42438716]
[1743051643181,2.29926,2030.7,2030.6,4.09818716]
[1743051643481,6.3288,2030.8,2030.6,4.09818716]
[1743051643683,8.70515,2030.8,2030.7,1.316]
[1743051643879,8.70515,2030.8,2030.7,1.746]
[1743051644183,3.2078,2030.8,2030.7,2.73076]
[1743051645784,3.2078,2030.8,2030.7,43.53076]
[1743051646779,0.00738716,2030.9,2030.8,0.98471]
[1743051646981,0.00738716,2030.9,2030.8,8.18401]
[1743051652983,0.00738716,2030.9,2030.8,2.36401]
[1743051653285,1.43708716,2030.9,2030.8,2.36401]
[1743051653490,1.43708716,2030.9,2030.8,2.77401]
[1743051654182,2.42174716,2030.9,2030.8,1.3793]
[1743051654481,2.42174716,2030.9,2030.8,3.4493]
[1743051655283,2.42174716,2030.9,2030.8,3.4993]
[1743051655485,2.42174716,2030.9,2030.8,3.3093]
[1743051656377,2.42174716,2030.9,2030.8,1.3793]
[1743051656589,2.42174716,2030.9,2030.8,3.4293]
[1743051657686,2.42174716,2030.9,2030.8,1.3793]
[1743051657885,2.42174716,2030.9,2030.8,3.3693]
[1743051658086,2.42174716,2030.9,2030.8,1.3793]
[1743051658290,2.42174716,2030.9,2030.8,3.4393]
[1743051658591,2.42174716,2030.9,2030.8,3.4193]
[1743051659690,2.42174716,2030.9,2030.8,1.3793]
[1743051659891,2.42174716,2030.9,2030.8,3.6393]
[1743051660494,2.42174716,2030.9,2030.8,1.3793]
[1743051660689,2.42174716,2030.9,2030.8,2.1493]
[1743051661195,3.13034716,2030.9,2030.8,2.1493]
[1743051661397,4.12730832,2030.9,2030.8,2.1493]
[1743051661797,3.13034716,2030.9,2030.8,2.1493]
[1743051666195,3.13034716,2030.9,2030.8,2.8113]
[1743051670499,3.13034716,2030.9,2030.8,43.6113]
[1743051672600,2.42174716,2030.9,2030.8,43.6113]
[1743051680306,1.43708716,2030.9,2030.8,44.59601]
[1743051681309,0.00738716,2030.9,2030.8,44.59601]
[1743051681616,1.06403358,2031.1,2031.0,0.98461]
[1743051681912,3.32150786,2031.4,2031.2,0.98447]
[1743051682108,3.30730142,2031.4,2031.3,2.0946]
[1743051682308,4.37205475,2031.4,2031.3,4.2246]
[1743051682504,4.37205475,2031.4,2031.3,2.0946]
[1743051682705,4.37205475,2031.4,2031.3,4.2046]
[1743051684116,0.98456,2031.1,2031.0,3.2078]
[1743051684411,0.98456,2031.1,2031.0,3.66359356]
[1743051684607,0.98456,2031.1,2031.0,3.19359356]
[1743051685210,2.40356,2031.1,2031.0,3.19359356]
[1743051685410,3.40202786,2031.1,2031.0,3.19359356]
[1743051685606,0.98461,2031.0,2030.9,1.4088]
[1743051685813,0.98476,2030.7,2030.6,4.19998716]
[1743051686015,0.98476,2030.7,2030.6,6.95518716]
[1743051687816,0.98476,2030.7,2030.6,3.74738716]
[1743051688010,2.32576,2030.7,2030.6,3.74738716]
[1743051689420,3.32422786,2030.7,2030.6,3.74738716]
[1743051691317,3.32422786,2030.7,2030.6,0.00738716]
[1743051693019,3.32422786,2030.7,2030.6,2.38738716]
[1743051693223,3.32422786,2030.7,2030.6,0.00738716]